Cogmind - Beta 15 @@@ ROGUE MODE // 2025.05.08 @ 19:55:29 Player: VT-MNC Result: Destroyed by 25-6CQ(R) with Subdweller Beam Cannon Performance ------------- Evolutions (0) 0 Regions Visited (2) 400 Robots Destroyed (30) 150 Value Destroyed (865) 865 Prototype IDs (2) 40 Alien Tech Used (0) 0 Bonus (0) 0 TOTAL SCORE: 1455 Bonus ------- None Cogmind --------- Core Integrity 0/250 Matter 241/300 Energy 246/250 System Corruption 0% Temperature Cool (9) Movement Treading (320) Ox2 Location -10/Subcaves Parts ------- > --- POWER (1) -------- Ion Engine > --- PROPULSION (2) --- Light Treads Light Treads > --- UTILITY (2) ------ Huge Storage Unit Makeshift Light Armor Plating > --- WEAPON (2) ------- Beam Cannon Light Cannon > --- INVENTORY (25) --- Subdweller Power Source Light Treads Subdweller Monowheel Improved Heat Sink Subdweller Optics Subdweller Optics Signal Interpreter Improved Terrain Scanner Seismic Detector Core Shielding Core Shielding Scrap Shield Subdweller Laser Beam Cannon Battle Rifle Subdweller Machine Gun Subdweller Machine Gun Light Cannon Light Cannon Light Cannon Grenade Launcher Mining Laser Multitool Peak State ------------ > --- POWER ------------ Ion Engine > --- PROPULSION ------- Light Treads Light Treads > --- UTILITY ---------- Huge Storage Unit Makeshift Light Armor Plating > --- WEAPON ----------- Beam Cannon Light Cannon > --- INVENTORY -------- Subdweller Power Source Light Treads Subdweller Monowheel Improved Heat Sink Subdweller Optics Subdweller Optics Signal Interpreter Improved Terrain Scanner Seismic Detector Core Shielding Core Shielding Scrap Shield Subdweller Laser Beam Cannon Battle Rifle Subdweller Machine Gun Subdweller Machine Gun Light Cannon Light Cannon Light Cannon Light Cannon Grenade Launcher Mining Laser Multitool [Rating: 14] Favorites ----------- Power Ion Engine Engine Ion Engine Power Core Light Nuclear Core Propulsion Light Treads Treads Light Treads Leg Aluminum Leg Wheel Subdweller Monowheel Utility Huge Storage Unit Device Seismic Detector Storage Huge Storage Unit Protection Core Shielding Weapon Light Cannon Energy Gun Small Laser Energy Cannon Beam Cannon Ballistic Gun Assault Rifle Ballistic Cannon Light Cannon Launcher Grenade Launcher Special Weapon Mining Laser Build | -11 -10 -10 ------- Run | Yrd Mat Sub Slots Evolved . | . . . Power . | . . . Propulsion . | . . . Utility . | . . . Weapon . | . . . Parts Attached 31 | 3 17 11 Power 5 | . 2 3 Engine 4 | . 1 3 Core 1 | . 1 . Reactor . | . . . Propulsion 7 | 2 2 3 Treads 3 | 2 . 1 Leg . | . . . Wheel 4 | . 2 2 Hover . | . . . Flight . | . . . Utility 10 | 1 5 4 Device 4 | 1 2 1 Storage 2 | . 2 . Processor . | . . . Hackware . | . . . Protection 4 | . 1 3 Artifact . | . . . Weapon 9 | . 8 1 Energy Gun 1 | . 1 . Energy Cannon 1 | . 1 . Ballistic Gun 1 | . 1 . Ballistic Cannon 4 | . 3 1 Launcher 1 | . 1 . Special Weapon 1 | . 1 . Impact Weapon . | . . . Slashing Weapon . | . . . Piercing Weapon . | . . . Special Melee Weapon . | . . . Unidentified Prototypes . | . . . Parts Lost 3 | . . 3 Power 1 | . . 1 Propulsion 1 | . . 1 Utility . | . . . Weapon 1 | . . 1 Highest Loss Streak 1 | . . 1 To Critical Strikes . | . . . Average Backups 19 | 6 17 22 Power 1 | 1 1 1 Propulsion 2 | 4 3 2 Utility 6 | . 4 8 Weapon 8 | 1 7 9 Tool/Special . | . . . Unused Backups 29 | 4 7 18 Power 4 | 1 2 1 Propulsion 2 | . 2 . Utility 8 | 1 1 6 Weapon 12 | 2 2 8 Tool/Special 3 | . . 3 Average Slot Usage (%) 99 | . 99 99 Engine 11 | . 10 12 Core 2 | . 3 1 Treads 22 | . 25 18 Wheel 5 | . 2 8 Device 8 | . 13 5 Storage 13 | . 14 13 Protection 4 | . . 8 Energy Cannon 2 | . 1 3 Ballistic Gun 1 | . 2 . Ballistic Cannon 19 | . 16 22 Launcher 1 | . . 1 Special Weapon 2 | . 5 . Peak Build Rating 14 | 8 11 14 Average Rating 10 | 6 9 11 On Entrance 8 | 6 8 11 Naked Turns . | . . . Heaviest Build 95 | 12 92 95 Greatest Support 40 | 40 40 40 Greatest Overweight (x) 9 | . 5 9 Average Overweight (x) 3 | . 1 4 Largest Inventory Capacity 25 | 8 25 25 Average Capacity 22 | 8 20 24 Most Carried 25 | 8 20 25 Average Carried 20 | 6 17 22 Final Capacity 25 | 8 25 25 Final Carried 24 | 8 20 24 Class Distribution -------------------- 100% | Mutant Dominant Class ---------------- Mutant | -10/Materials Mutant | -10/Subcaves Resources | -11 -10 -10 ----------- Run | Yrd Mat Sub Matter Collected 1519 | 248 525 746 Remotely . | . . . Salvage Created 875 | 171 297 407 Parts 60 | 11 14 35 Haulers Intercepted 2 | . 2 . Recyclers Shooed 2 | 1 1 . Parts Field Recycled . | . . . Retrieved Matter . | . . . Parts Self-Destructed 5 | . . 5 Prevented . | . . . Kills | -11 -10 -10 ------- Run | Yrd Mat Sub Combat Hostiles Destroyed 21 | . 6 15 Cannons 15 | . 6 9 AOE 6 | . . 6 Classes Destroyed 9 | 2 4 3 Worker 1 | . 1 . Tunneler 4 | 4 . . Hauler 2 | . 2 . Recycler 1 | 1 . . Watcher 1 | . 1 . Swarmer 1 | . . 1 Grunt 6 | . 6 . Artisan 1 | . . 1 Subdweller 14 | . . 14 Best Kill Streak 4 | 3 2 4 Combat Bots Only 4 | . 2 4 Max Kills in Single Turn 2 | 1 1 2 Gunslinging . | . . . Exploded 2 | . . 2 Melee . | . . . Uniques/NPCs Destroyed . | . . . Combat | -11 -10 -10 -------- Run | Yrd Mat Sub Hostile Shots Fired 102 | . 17 85 Missed 30 | . 2 28 Hits 72 | . 15 57 Projectile 72 | . 15 57 Critical Strikes 1 | . . 1 Damage Taken 1345 | . 209 1136 Core 259 | . 13 246 Absorbed by Shields . | . . . Redirected to Shielding 28 | . . 28 Regen/Repaired (Parts) 141 | . 141 . Core Remaining (%) 100 | 100 . . Volleys Fired 145 | 12 49 84 Largest 2 | 2 2 2 Hottest 100 | 60 100 100 Shots Fired 242 | 23 79 140 Gun 36 | 23 13 . Cannon 177 | . 54 123 Launcher 11 | . 1 10 Special 18 | . 11 7 Kinetic 153 | 12 56 85 Thermal 74 | 11 18 45 Explosive 11 | . 1 10 Electromagnetic 4 | . 4 . Robot Hit Streak 12 | 8 11 12 Robot Miss Streak 4 | 1 4 3 Penetration Max . | . . . Secondary Targets . | . . . Shots Hit Robots 150 | 16 36 98 Core Hits 55 | 6 12 37 Critical Kills . | . . . Critical Parts Destroyed . | . . . Critical Strikes 3 | . 1 2 Blast 3 | . 1 2 Melee Attacks . | . . . Impact . | . . . Slashing . | . . . Piercing . | . . . Sneak Attacks . | . . . Combat Hostiles . | . . . Follow-up Attacks . | . . . Damage Inflicted 3222 | 194 625 2403 Guns 258 | 194 64 . Cannons 2179 | . 561 1618 Explosions 785 | . . 785 Melee . | . . . Ramming . | . . . Kinetic 1665 | 97 544 1024 Thermal 772 | 97 81 594 Explosive 785 | . . 785 Electromagnetic . | . . . Impact . | . . . Slashing . | . . . Piercing . | . . . Highest Corruption . | . . . Average Corruption . | . . . Corruption Purged . | . . . Corruption Blocked . | . . . Overload Shots . | . . . Overflow Damage 3 | . . 3 Projectiles . | . . . Explosions 3 | . . 3 Melee . | . . . Knockbacks 17 | . 7 10 Impact . | . . . Kinetic 16 | . 6 10 Secondary 1 | . 1 . Self-Inflicted Damage 2 | . . 2 Shots 1 | . . 1 Rammed . | . . . Targets Rammed 1 | . 1 . Kicked . | . . . Crushed 1 | . 1 . Highest Temperature 56 | . 56 7 Average Temperature 19 | . 22 2 Received Heat Transfer 369 | . 120 249 Siege Activations . | . . . Martial Activations . | . . . Shielding Activations . | . . . Robots Disrupted . | . . . Combat Hostiles . | . . . Robots Corrupted . | . . . Combat Hostiles . | . . . Parts Fried . | . . . Impact Corruptions . | . . . Robots Melted . | . . . Combat Hostiles . | . . . Parts Melted 3 | . . 3 Heat Transferred 1656 | 225 173 1258 Parts Sabotaged . | . . . Parts Stolen . | . . . Parts Stripped . | . . . Power Chain Reactions . | . . . Alert | -11 -10 -10 ------- Run | Yrd Mat Sub Maximum Alert Level . | . . . Low Security (%) 100 | 100 100 . Level 1 . | . . . Level 2 . | . . . Level 3 . | . . . Level 4 . | . . . Level 5 . | . . . High Security . | . . . Max Security . | . . . Peak Influence 43 | 10 43 . Initial . | . . . Average 7 | 3 7 . Influence Increases 302 | 25 257 20 Destroy 0b10 Robot/C 140 | . 120 20 Destroy 0b10 Robot/NC 45 | 25 20 . Destroy Leader 36 | . 36 . Successful Hack 29 | . 29 . Disable Machine 15 | . 15 . Destroy Structure 22 | . 22 . Lose Combat Pursuer 15 | . 15 . Influence Decreases 302 | 25 257 20 Time Decay 302 | 25 257 20 Squads Dispatched 1 | . 1 . Investigation 1 | . 1 . Extermination . | . . . Reinforcement . | . . . Assault . | . . . Garrison . | . . . Intercept . | . . . Searches Triggered . | . . . Construction Impeded . | . . . Haulers Reinforced . | . . . Active Scanning Responses . | . . . Cargo Convoy Interrupts . | . . . Stealth | -11 -10 -10 --------- Run | Yrd Mat Sub Distress Signals 2 | . 2 . Communications Jammed . | . . . Distress Signals . | . . . Times Spotted 31 | . 14 17 Peak Tracking Total 4 | . 3 4 Tactical Retreats 1 | . 1 . Traps | -11 -10 -10 ------- Run | Yrd Mat Sub Traps Triggered 1 | . 1 . Indirectly . | . . . Trap Hack Attempts . | . . . Triggered . | . . . Disarmed . | . . . Reprogrammed . | . . . Reused . | . . . Traps Extracted . | . . . Installed . | . . . Triggered . | . . . Machines | -11 -10 -10 ---------- Run | Yrd Mat Sub Machines Disabled 1 | . 1 . Max in Single Turn 1 | . 1 . Machines Repaired . | . . . Machines Dismantled . | . . . Machines Sabotaged . | . . . Overloaded Fab Kills . | . . . Hacking | -11 -10 -10 --------- Run | Yrd Mat Sub Machines Accessed 10 | . 9 1 Terminals 8 | . 8 . Fabricators . | . . . Repair Stations 1 | . 1 . Recycling Units . | . . . Scanalyzers . | . . . Garrison Access . | . . . Total Hacks 40 | . 36 4 Successful 24 | . 20 4 Failed 16 | . 16 . Catastrophic . | . . . Database Lockouts . | . . . Manual 23 | . 23 . Terminals 31 | . 31 . Fabricators . | . . . Repair Stations 5 | . 5 . Recycling Units . | . . . Scanalyzers . | . . . Garrison Access . | . . . Terminal Hacks 15 | . 11 4 Record 5 | . 1 4 Part Schematic 1 | . 1 . Robot Analysis 4 | . 4 . Prototype ID Bank 1 | . 1 . Locate Traps 1 | . 1 . Hauler Manifests 1 | . 1 . Zone Layout 2 | . 2 . Fabricator Hacks . | . . . Repair Station Hacks 5 | . 5 . Scan Component 3 | . 3 . Repair 2 | . 2 . Recycling Unit Hacks . | . . . Scanalyzer . | . . . Garrison Access Hacks . | . . . Unauthorized Hacks 4 | . 4 . Terminals 4 | . 4 . Botnet 3 | . 3 . Operators 1 | . 1 . Fabricators . | . . . Repair Stations . | . . . Recycling Units . | . . . Scanalyzers . | . . . Garrison Access . | . . . Data Cores Recovered . | . . . Used . | . . . Hacking Detections 8 | . 8 . Full Trace Events . | . . . Feedback Events . | . . . Feedback Blocked . | . . . Robot Schematics Acquired . | . . . Robots Built . | . . . Authchips . | . . . Time . | . . . Total Robot Build Rating . | . . . Part Schematics Acquired 1 | . 1 . Parts Built . | . . . Authchips . | . . . Time . | . . . Total Part Build Rating . | . . . Parts Repaired 2 | . 2 . Time 52 | . 52 . Parts Recycled . | . . . Recycled Matter . | . . . Retrieved Matter . | . . . Retrieved Components . | . . . Parts Scanalyzed . | . . . Part Schematics Acquired . | . . . Parts Damaged . | . . . Bothacking | -11 -10 -10 ------------ Run | Yrd Mat Sub Used RIF Installer . | . . . Robots Hacked . | . . . Non-combat . | . . . Combat . | . . . Robot Hacks Applied . | . . . Relay Couplers Released . | . . . Fabnet Peak Effective % . | . . . Robots Rewired . | . . . Allies Hacked . | . . . Hacks Repelled . | . . . Allies | -11 -10 -10 -------- Run | Yrd Mat Sub Total Allies . | . . . Largest Group . | . . . Highest-Rated Group . | . . . Highest-Rated Ally . | . . . Total Orders . | . . . Ally Attacks . | . . . Total Damage . | . . . Kills . | . . . Allies Corrupted . | . . . Allies Melted . | . . . Intel | -11 -10 -10 ------- Run | Yrd Mat Sub Active Infowar (turns) 2297 | 10 1354 933 Seismic 2297 | 10 1354 933 Robot Analysis Total 4 | . 4 . Derelict Logs Recovered 2 | . . 2 Drone Launches . | . . . Drone Recoveries . | . . . Exploration | -11 -10 -10 ------------- Run | Yrd Mat Sub Turns Passed 4899 | 86 2157 2656 Spaces Moved 2055 | 20 839 1196 Core . | . . . Treads 938 | 15 673 250 Legs 5 | 5 . . Wheels 1112 | . 166 946 Hover . | . . . Flight . | . . . Fastest Speed 120 | 120 160 150 Average Speed 204 | 150 222 192 Slowest Speed 480 | 160 240 480 Overloaded Moves . | . . . Propulsion Burnouts . | . . . Robots Hopped . | . . . Potential Cave-ins . | . . . Cave-ins Triggered . | . . . Exploration Rate (%) 55 | 3 97 65 Regions Visited 2 Branch Regions 1 Pre-discovered Areas 3 | . . 3 Known Exits Taken . | . . . Unknown Exits Taken 2 | 1 1 . Scrap Searched 2 | . . 2 Spaces Dug 21 | . 21 . Terrain Destroyed 63 | . 21 42 Melee . | . . . Projectile 10 | . 10 . AOE 53 | . 11 42 Terrain Rammed . | . . . Walls Destroyed . | . . . Machines Disabled . | . . . Actions | -11 -10 -10 --------- Run | Yrd Mat Sub Total 2470 | 52 1021 1397 Wait 108 | 16 68 24 Move 2053 | 19 838 1196 Hop . | . . . Pick Up 59 | 2 22 35 Fast Attach 6 | 1 1 4 Attach 7 | . 1 6 Detach 3 | . . 3 Swap 56 | 2 27 27 Drop 29 | . 14 15 Fire 145 | 12 49 84 Melee . | . . . Ram . | . . . Kick . | . . . Crush 1 | . 1 . Escape Stasis . | . . . Rewire 2 | . . 2 Trap . | . . . Miscellaneous 1 | . . 1 Route ------- -11/Scrapyard -10/Materials (discovered 5 exits: [*Mat x3] / [*Min] / *Sub) -10/Subcaves (discovered 2 exits: [*Mat] / [Scr]) History --------- Turn | Location | Event 19 | -11/Scrapyard | Discovered new exit (range 2) 87 | -11/Scrapyard | Entered Materials 88 | -10/Materials | Met a group of wandering Federalists 315 | -10/Materials | Build established: Mutant 691 | -10/Materials | Discovered new exit (range 6) 1038 | -10/Materials | Discovered new exit (range 11) 1094 | -10/Materials | Repaired Lgt. Treads 1122 | -10/Materials | Repaired Lgt. Treads 1532 | -10/Materials | Discovered new exit (range 10) 1770 | -10/Materials | Discovered new exit (range 16) 1949 | -10/Materials | Discovered new exit (range 6) 2244 | -10/Materials | Entered Subcaves 2245 | -10/Subcaves | Continued accompanying wandering Federalists (1) 2245 | -10/Subcaves | Approached by a straggling Scientist 2273 | -10/Subcaves | Learned location of Storage (-7) 2304 | -10/Subcaves | Discovered new exit (range 9) 2397 | -10/Subcaves | Visited Clippyterm 2402 | -10/Subcaves | Learned 40 Factory zone layouts 2708 | -10/Subcaves | Disturbed a concealed Subdweller 2968 | -10/Subcaves | Learned location of Zion (-6) 3099 | -10/Subcaves | Met a Zionite searching for "candidates" 3243 | -10/Subcaves | Core integrity fell below 50% 3806 | -10/Subcaves | Shifting Twisted Machinery released Sub. Machine Gun 3807 | -10/Subcaves | Shifting Twisted Machinery released Mak. Light Armor Plating 4799 | -10/Subcaves | Scientist uncovered a shortcut to Scraptown 4869 | -10/Subcaves | Core integrity fell below 20% 4900 | -10/Subcaves | Destroyed by 25-6CQ(R) with Subdweller Beam Cannon Last Messages --------------- 04758_ Acquired Lgt. Treads. 04765_ 02-AFL(u) tweaks Twisted Machinery. 04771_ Subatomizers dissect the Sub. Monowheel. 1P-9Q4(c): "We're getting close, I can feel it." 04799_ 1P-9Q4(c): "Hah, right again, there it is!" 04818_ Subatomizers dissect the Sub. Machine Gun. 04853_ Lgt. Cannon destroyed. 04856_ Sub. Power Source melted. 04856_ U2-Y8B(R) destroyed. 04859_ AB-OEA(R) knocked back. 04862_ Acquired 35 matter. 04868_ Sub. Optics melted. 04868_ AB-OEA(R) destroyed. 04869_ Acquired 36 matter. 04874_ Acquired 4 matter. 04890_ 25-6CQ(R) knocked back. 04891_ Acquired 4 matter. 04893_ 25-6CQ(R) affixes Scrap Shield Fragment to Scrap Shield. 04893_ SQ-K6L(R) knocked back. 04899_ 25-6CQ(R) knocked back. Map ----- +----------------------------------------------------+ | ????????????????????????# ????????# ### #####? | | ????????????????????????# ???????# ## ## | | ???????????????????????? ?????## ## | | ??????????????????????? ##### #??# | | ???????????????????????? #??## | | ???????????????????????????# #?## | | ????????????????????????????# ### | | ?????????????????????????????# ## | | ?????????????????????????????????# # ## | | ????????????????????????????????### #### | | ????????????????????????????????# ##?# | | ????????????????????????????????# ##??# | | ???????????????????????????????# #??# #### | | ???????????????????????????????# ?# ???# ## | | ??????????????????????????????# ???## ### | | ???????????????????????????#?# ?????###?# | | ????????????? ?????????? ?" " #?????????? | | ????????????## ???????? "" """ [ #??????????? | | ???????????## "##????? # "" "" ##??????????? | | ???????????# ????#""##########???????????? | | ?????????# ####""""#??????????????????? | | ????????? %%"""#???????????????????? | | ?????????????# [ ##### # %"""#???????????????????? | | ???????????????????????### RR#???????????????????? | | ????????????????????????#;[ !#????????????????#### | | ??????????????????????###@ ![#????????????????# | | ?????????????????????##" #????????????????## | | ?????????????????????#" #?????????????????# | | ????????????## ?????### ## #?????????????????## | | ????????????# #### # #####??????????????????## | | ???????????# > ##???????????????????????# | | ??????????????## ## ###????????????????????????? | | ??????????????????## ####???????????????????????? | | ????????????????### [""&"#???????????????????????? | | ???????????????## ##[&=&"#???????????????????????? | | ???????????????# *=!&[&"???????????????????????? | | ???????????????# #<"& **#???????????????????????? | | ???????????????# ## !!!##???????????????????????? | | ???????????????# ######????????????????????????? | | ???????????????# #????????????????????????????? | | ???????????????# #????????????????????????????? | | ???????????????# #????????????????????????????? | | ???????????????## ##???????????????????????????? | | ????????????????## #???????????????????????????? | | ????????????????## ##???????????????????????????? | | ????????????????# #????????????????????????????? | | ????????????????# ###??????????????????????????? | | ????????????????# #??????????????????????????? | | ????????????????##"" ##??????????????????????????? | | ????????????????#"" ##???????????????????????????? | +----------------------------------------------------+ Best States ------------- Heat Dissipation 39 Energy Generation 15 Energy Capacity 250 Matter Stores 300 Matter Capacity 300 Sight Range 16 Terrain Scan Density 10 Armor Coverage 800 Core Shielding 20 Evasion (%) 45 Recoil Reduction 2 Item Schematics ----------------- Huge Storage Unit | -10/Materials | Hacked Robot Schematics ------------------ None Fabricated ------------ Nothing Repaired ---------- Lgt. Treads | 44% | -10/Materials Lgt. Treads | 55% | -10/Materials Alien Tech Used ----------------- None Achievements -------------- None Challenges ------------ None Game ------ Seed PoweredLinkedReconfigurator Manual? 0 Play Time 00:36:44 Cumulative 149.2 hours Start 2025.05.08 @ 18:15:52 End 2025.05.08 @ 19:55:29 Sessions 13 Manual Loads 0 Difficulty Rogue Special Mode None Game No. 20 Rogue 13 Adventurer 4 Explorer 3 Win Type - Total 14 Types 9/1/2/0/0/0/0/2/0/0 Lore% 55 Gallery% 61 Achievement% 64 Wizard Run 0 Options --------- Layout 0 ASCII 0 Keyboard 0 Movement Mouse Keybinds 0 Fullscreen 1 Font 18/TerminusBold Map View 76x50 Zoom Use 0% Tactical HUD 1 Map Filters NONE Filters NONE Steam 1 RUN: 41840868-2be1-44b5-a3cc-ab5227188606